Cogmind - Beta 10.2 @@@ ROGUE MODE // 2021.07.01 @ 20:46:42 Player: Finestep Result: Destroyed by Combat Programmer with EMDS Performance ------------- Evolutions (6) 3000 Regions Visited (24) 4800 Robots Destroyed (359) 1795 Value Destroyed (15825) 15825 Prototype IDs (244) 4880 Alien Tech Used (0) 0 Bonus (9994) 9994 TOTAL SCORE: 40294 Bonus ------- High Alert Combat Kills 1942 Follower Combat Kills 2124 Entered Garrisons 600 Used RIF Installer 1500 Network Hubs Disabled 200 Aligned with FarCom 300 Met Data Miner 300 Used Data Conduit 3000 Pursued by Intercept 500 Friendly Fire -472 Cogmind --------- Core Integrity 0/1150 Matter 138/300 Energy 170/170 System Corruption 35% Temperature Cool (25) Movement Core (1900) Ox37 Location -4/Armory Parts ------- > --- POWER (2) -------- Micro Fission Core > --- PROPULSION (4) --- (None) > --- UTILITY (11) ----- High-capacity Storage Unit High-capacity Storage Unit High-capacity Storage Unit Advanced Sensor Array Experimental Signal Interpreter Experimental Terrain Scan Processor Advanced Armor Integrity Analyzer > --- WEAPON (2) ------- Light Antimatter Cannon Light Antimatter Cannon > --- INVENTORY (28) --- Improved Treads Flexi-carbon Leg Flexi-carbon Leg Improved Energy Well (600) Advanced Energy Well (800) Relay Coupler [NC] (30) Relay Coupler [Brawler] (28) Relay Coupler [Sentry] (22) Long-range Tractor Beam HERF Cannon Neutron Cannon Railgun Improved KE Penetrator Improved KE Penetrator Improved KE Penetrator Light Antimatter Cannon Light Antimatter Cannon Light Antimatter Cannon Improved Proton Missile Launcher Improved Remote Datajack Peak State ------------ > --- POWER ------------ Light Antimatter Reactor Light Antimatter Reactor > --- PROPULSION ------- Improved Heavy Treads Improved Heavy Treads > --- UTILITY ---------- High-capacity Storage Unit High-capacity Storage Unit High-capacity Storage Unit Advanced Sensor Array Experimental Signal Interpreter Experimental Terrain Scan Processor Tactical Coordination Suite Advanced Armor Integrity Analyzer Improved Transmission Jammer Improved Medium Armor Plating Advanced Force Field > --- WEAPON ----------- Improved KE Penetrator Improved KE Penetrator > --- INVENTORY -------- Light Antimatter Reactor Improved Treads Improved Heavy Treads Improved Heavy Treads Flexi-carbon Leg Improved Energy Well Advanced Energy Well High-capacity Matter Pod Relay Coupler [NC] Relay Coupler [Brawler] Relay Coupler [Sentry] Long-range Tractor Beam HERF Cannon Neutron Cannon Railgun Improved KE Penetrator Improved KE Penetrator Improved KE Penetrator Improved KE Penetrator Light Antimatter Cannon Light Antimatter Cannon Light Antimatter Cannon Light Antimatter Cannon Light Antimatter Cannon Improved Proton Missile Launcher Improved Remote Datajack [Rating: 122] Favorites ----------- Power Improved Ion Engine Engine Improved Ion Engine Power Core Micro Fission Core Reactor Antimatter Reactor Propulsion Light Treads Treads Light Treads Leg Enhanced Flexi-carbon Leg Wheel Armored Wheel Utility High-capacity Storage Unit Device Weapon Cycler Storage High-capacity Storage Unit Processor Advanced Targeting Computer Hackware Relay Coupler [Grunt] Protection Hardened Heavy Armor Plating Weapon Enhanced Autogun Energy Gun High-powered Shock Rifle Energy Cannon Neutron Cannon Ballistic Gun Enhanced Autogun Ballistic Cannon Heavy Gauss Cannon Launcher Shock Bomb Launcher Special Weapon Remote Datajack Piercing Weapon Spear Special Melee Weapon Improved Datajack Build | -11 -10 -10 -10 -9 -8 -8 -8 -8 -7 -7 -6 -6 -6 -6 -6 -6 -5 -5 -5 -5 -5 -5 -4 -4 ------- Run | Scr Mat Min Exi Min Mat Gar Mat Gar Fac Gar Fac Was Fac Low Low Dat Pro Fac Ext Cet Arc Hub Fac Arm Slots Evolved 12 | . . . . . 4 . . . 2 . 2 . . . . . . 2 . . . . 2 . Power 1 | . . . . . . . . . . . . . . . . . . 1 . . . . . . Propulsion 2 | . . . . . . . . . 1 . 1 . . . . . . . . . . . . . Utility 9 | . . . . . 4 . . . 1 . 1 . . . . . . 1 . . . . 2 . Weapon . | . . . . . . . . . . . . . . . . . . . . . . . . . Parts Attached 457 | 6 20 4 3 3 44 6 33 19 26 22 12 10 14 10 14 21 18 12 41 8 5 16 36 54 Power 31 | 1 2 . . . 2 . 1 1 1 1 . 1 1 . . 1 . 1 7 2 . 1 3 5 Engine 11 | 1 2 . . . 2 . 1 1 . 1 . . . . . . . . 3 . . . . . Core 8 | . . . . . . . . . 1 . . . 1 . . . . . 3 . . . 2 1 Reactor 12 | . . . . . . . . . . . . 1 . . . 1 . 1 1 2 . 1 1 4 Propulsion 81 | 2 2 4 1 1 6 2 5 4 5 6 3 1 . 1 . 3 4 1 9 2 2 3 4 10 Treads 53 | 2 2 3 1 . 3 2 4 3 3 4 2 . . . . 2 . 1 7 2 2 . 4 6 Leg 9 | . . . . . . . . . . . . . . . . 1 2 . 2 . . . . 4 Wheel 19 | . . 1 . 1 3 . 1 1 2 2 1 1 . 1 . . 2 . . . . 3 . . Hover . | . . . . . . . . . . . . . . . . . . . . . . . . . Flight . | . . . . . . . . . . . . . . . . . . . . . . . . . Utility 148 | 1 2 . 2 . 16 2 9 6 5 3 7 5 6 2 4 10 6 6 16 2 3 4 16 15 Device 73 | . . . . . 5 . 2 2 2 1 2 5 4 2 3 3 5 6 10 . 2 1 8 10 Storage 11 | 1 2 . 2 . 1 . . . 1 . . . . . 1 2 . . . . . . 1 . Processor 8 | . . . . . . 1 . . . . 2 . . . . 1 . . 1 . . . 1 2 Hackware 13 | . . . . . . . 1 2 . 1 2 . 1 . . . . . 2 . . 2 1 1 Protection 43 | . . . . . 10 1 6 2 2 1 1 . 1 . . 4 1 . 3 2 1 1 5 2 Artifact . | . . . . . . . . . . . . . . . . . . . . . . . . . Weapon 197 | 2 14 . . 2 20 2 18 8 15 12 2 3 7 7 10 7 8 4 9 2 . 8 13 24 Energy Gun 7 | . . . . . 2 . . . 1 . . . . . . . . . . . . . 4 . Energy Cannon 26 | . . . . . . . . . . . . . 1 2 4 1 3 3 2 . . 3 2 5 Ballistic Gun 106 | 2 10 . . 2 14 1 8 4 8 7 1 . 4 3 4 2 4 1 6 2 . 5 4 14 Ballistic Cannon 4 | . . . . . . . . . . . . . . . . . . . . . . . 1 3 Launcher 14 | . 1 . . . 2 1 1 . 2 2 . . . 2 1 2 . . . . . . . . Special Weapon 16 | . 3 . . . . . . . 1 1 1 1 2 . 1 . 1 . 1 . . . 2 2 Impact Weapon . | . . . . . . . . . . . . . . . . . . . . . . . . . Slashing Weapon . | . . . . . . . . . . . . . . . . . . . . . . . . . Piercing Weapon 18 | . . . . . 2 . 5 2 3 2 . 2 . . . 2 . . . . . . . . Special Melee Weapon 6 | . . . . . . . 4 2 . . . . . . . . . . . . . . . . Unidentified Prototypes 11 | . . . . . 6 . . . 1 . 1 . . . . . . . 1 . . 2 . . Parts Lost 75 | . 2 . . . 7 1 3 1 1 1 . . . . . 5 3 2 9 1 1 6 7 25 Power 13 | . 1 . . . 1 . . . . . . . . . . . . 1 3 . . 1 2 4 Propulsion 18 | . 1 . . . . . 1 . . . . . . . . 2 2 . 1 1 . 1 2 7 Utility 29 | . . . . . 3 1 1 . 1 1 . . . . . 1 1 . 4 . 1 2 3 10 Weapon 15 | . . . . . 3 . 1 1 . . . . . . . 2 . 1 1 . . 2 . 4 Highest Loss Streak 12 | . 2 . . . 1 1 1 1 1 1 . . . . . 4 3 1 2 1 1 2 5 12 Average Slot Usage (%) 93 | . 94 100 99 100 99 91 96 89 91 91 86 88 90 86 85 85 93 93 96 91 91 91 90 82 Engine 5 | . 12 14 14 14 8 9 9 9 4 2 6 1 . . . . . . 2 . . . . . Core 1 | . . . . . . . . . 2 4 . . 4 6 6 3 . . 2 5 5 5 5 3 Reactor 1 | . . . . . . . . . . . . 4 1 . . 2 6 10 4 5 5 5 4 6 Treads 12 | . 27 18 13 14 3 18 17 17 10 18 13 12 6 6 6 6 2 . 15 11 17 12 10 10 Leg 1 | . . . . . . . . . . . . . . . . 2 12 11 2 2 . . . 2 Wheel 6 | . . 9 14 14 14 . . . 12 3 6 6 13 13 13 8 5 5 1 . . 4 8 . Device 7 | . . . . . 4 . 1 5 14 9 2 6 7 6 5 2 10 17 13 15 11 11 11 12 Storage 22 | . 25 28 28 28 26 27 27 27 23 23 20 20 20 20 20 23 20 17 17 17 17 17 14 15 Processor 5 | . . . . . . 7 3 . . . 8 13 13 13 13 13 13 11 9 5 5 5 5 11 Hackware 1 | . . . . . . . 4 . . 4 7 6 7 . . . . . 3 . . 6 7 1 Protection 7 | . . . . . 22 12 14 11 6 7 5 1 1 6 6 6 7 5 5 12 14 7 8 6 Energy Cannon 1 | . . . . . . . . . . . . . . 1 4 . 2 5 5 . . . . 1 Ballistic Gun 14 | . 26 28 28 28 17 17 16 13 14 14 12 3 6 10 7 9 9 4 5 11 11 10 7 8 Naked Turns . | . . . . . . . . . . . . . . . . . . . . . . . . . Heaviest Build 201 | 10 42 42 74 75 124 125 125 134 135 136 135 132 140 140 140 143 148 158 146 161 161 158 201 164 Greatest Support 150 | 40 40 40 12 20 42 42 43 43 60 60 28 40 40 40 40 40 71 12 120 133 138 136 116 150 Greatest Overweight (x) 13 | 1 1 3 6 6 5 3 5 10 5 11 5 4 3 3 3 5 10 13 12 5 1 11 11 6 Average Overweight (x) 3 | . . 2 5 5 3 2 2 2 4 3 4 3 2 3 3 3 7 11 4 1 1 2 5 . Largest Inventory Capacity 28 | 6 16 16 20 20 28 28 28 28 28 28 28 28 28 28 28 28 28 28 28 28 28 28 28 28 Average Capacity 25 | 5 13 16 19 20 27 28 28 28 28 28 28 28 28 28 28 28 28 28 28 28 28 28 27 28 Most Carried 28 | 5 16 16 18 20 28 28 28 28 28 28 28 28 28 28 28 28 28 28 28 28 28 28 28 28 Average Carried 24 | 3 11 15 16 18 26 27 27 27 27 27 27 27 27 27 28 27 27 27 27 27 27 26 22 26 Final Capacity 28 | 6 16 16 20 20 28 28 28 28 28 28 28 28 28 28 28 28 28 28 28 28 28 28 28 28 Final Carried 28 | 5 16 16 16 20 28 28 28 28 27 28 28 28 28 28 28 28 28 28 28 28 28 25 28 20 Class Distribution -------------------- 39% | Hauler-Mutant 27% | Bothacker-Mutant 18% | Scavenger-Mutant 11% | Mutant Dominant Class ---------------- Mutant | -10/Materials Mutant | -10/Mines Hauler-Mutant | -10/Exiles Hauler-Mutant | -9/Mines Hauler-Mutant | -8/Materials Hauler-Mutant | -8/Garrison Hauler-Mutant | -8/Materials Hauler-Mutant | -8/Garrison Hauler-Mutant | -7/Factory Bothacker-Mutant | -7/Garrison Bothacker-Mutant | -6/Factory Bothacker-Mutant | -6/Waste Bothacker-Mutant | -6/Factory Bothacker-Mutant | -6/Lower Caves Bothacker-Mutant | -6/Lower Caves Bothacker-Mutant | -6/Data Miner Bothacker-Mutant | -5/Proximity Caves Scavenger-Mutant | -5/Factory Scavenger-Mutant | -5/Extension Scavenger-Mutant | -5/Cetus Scavenger-Mutant | -5/Archives Hacker-Mutant | -5/Hub_04(d) Scavenger-Mutant | -4/Factory Hauler-Mutant | -4/Armory Resources | -11 -10 -10 -10 -9 -8 -8 -8 -8 -7 -7 -6 -6 -6 -6 -6 -6 -5 -5 -5 -5 -5 -5 -4 -4 ----------- Run | Scr Mat Min Exi Min Mat Gar Mat Gar Fac Gar Fac Was Fac Low Low Dat Pro Fac Ext Cet Arc Hub Fac Arm Matter Collected 12176 | 340 966 156 . 164 1359 275 725 373 810 793 303 95 115 398 225 335 290 119 737 235 189 499 1074 1601 Remotely 480 | . . . . . . . . . . . . . . . . . . . . . . . 191 289 Salvage Created 18739 | 139 1022 168 . 210 2325 527 1245 329 1163 1426 417 270 341 223 173 444 727 236 1451 454 372 1550 1426 2101 Parts 848 | 15 64 22 . 11 140 26 53 17 64 54 17 2 14 5 6 21 25 13 52 13 9 55 51 99 Haulers Intercepted 13 | . 2 . . . 5 . 2 . 3 . . . 1 . . . . . . . . . . . Recyclers Shooed 12 | 1 . . . 1 2 . . . 1 . 1 . 1 . . . . . 2 . . 1 2 . Parts Field Recycled . | . . . . . . . . . . . . . . . . . . . . . . . . . Retrieved Matter . | . . . . . . . . . . . . . . . . . . . . . . . . . Parts Self-Destructed 40 | . . . . . . . . . . . . . . 8 5 . 27 . . . . . . . Prevented 8 | . . . . . . . . . . . . . . 5 3 . . . . . . . . . Kills | -11 -10 -10 -10 -9 -8 -8 -8 -8 -7 -7 -6 -6 -6 -6 -6 -6 -5 -5 -5 -5 -5 -5 -4 -4 ------- Run | Scr Mat Min Exi Min Mat Gar Mat Gar Fac Gar Fac Was Fac Low Low Dat Pro Fac Ext Cet Arc Hub Fac Arm Combat Hostiles Destroyed 277 | . 17 10 . 2 43 14 19 6 14 20 3 1 4 3 2 4 14 4 14 9 4 21 17 32 Melee 5 | . . . . . 1 . 3 . . . . 1 . . . . . . . . . . . . Guns 220 | . 17 10 . 2 38 7 16 6 10 19 3 . 4 . 2 1 5 . 8 9 4 17 13 29 Cannons 27 | . . . . . . . . . . . . . . . . . 9 4 6 . . 2 3 3 AOE 17 | . . . . . 4 7 . . 4 . . . . 1 . . . . . . . 1 . . Classes Destroyed 19 | 3 6 . . . 3 . 1 . . . . 1 . . . . . . 1 2 . . . 2 Worker 11 | 1 4 . . . 3 . . . . . . . . . . . . . . . . 3 . . Builder 6 | . 2 . . . 1 . . . 1 . . . 1 . . . . . . . . 1 . . Tunneler 7 | 3 . . . 2 . . . . 1 . 1 . . . . . . . . . . . . . Hauler 13 | . 2 . . . 5 . 2 . 3 . . . 1 . . . . . . . . . . . Recycler 22 | 1 2 . . 1 2 . 2 . 5 . 2 . . . . . . . 4 . . 1 2 . Carrier 1 | . . . . . . . . . . . . . . . . . . . . 1 . . . . Operator 5 | . 3 . . . 1 . . . . . . . 1 . . . . . . . . . . . Watcher 14 | . 2 . . . 3 . 4 . 1 . 1 . . . . . . . 1 . . . . 2 Swarmer 44 | . 3 9 . . 11 . 4 . 4 2 . . . . . . 5 . . 6 . . . . Saboteur 1 | . . . . . . . . . . . . . . . . . . . . . . . . 1 Grunt 134 | . 14 1 . 2 19 11 10 3 2 16 2 . 3 3 2 . 5 . 8 2 . 11 5 15 Brawler 4 | . . . . . . . . . . . . . . . . . . . . 1 . 2 . 1 Duelist 5 | . . . . . . . 2 . . 1 . . . . . . 2 . . . . . . . Sentry 42 | . . . . . 11 3 3 3 3 2 . . . . . . 1 1 3 . 4 3 4 1 Specialist 2 | . . . . . . . . . . . . . . . . . . . . . . . . 2 Hunter 9 | . . . . . 1 . . . . . . . . . . . . 1 2 . . 3 . 2 Programmer 30 | . . . . . 1 . . . 5 . 1 . 1 . . . 1 2 . . . 2 8 9 Behemoth 1 | . . . . . . . . . . . . . . . . . . . 1 . . . . . Compactor 1 | . . . . . . . . . . . . 1 . . . . . . . . . . . . Enhanced Grunt 4 | . . . . . . . . . . . . . . . . 4 . . . . . . . . Tracker 2 | . . . . . . . . . . . . . . . . . . . . . . . . 2 Decomposer 2 | . . . . . . . . . . . . . . . 2 . . . . . . . . . Best Kill Streak 10 | 4 5 3 . 1 6 8 4 5 4 4 2 1 2 3 1 3 6 2 3 7 2 10 6 6 Combat Bots Only 8 | . 5 3 . 1 6 8 3 5 4 4 2 1 2 3 1 3 6 2 3 6 2 8 6 6 Max Kills in Single Turn 4 | 1 2 1 . 1 2 3 1 1 4 2 1 1 1 1 1 1 1 1 1 1 1 3 1 2 Gunslinging 1 | . . . . . . . . . . 1 . . . . . . . . . . . . . 1 Exploded 4 | . . . . . 2 3 . . 4 . . . . 1 . . . . . . . 1 . . Melee 1 | . . . . . 1 . 1 . . . . 1 . . . . . . . . . . . . Uniques/NPCs Destroyed 1 | . . . . . . . . . . . . . . . . 1 . . . . . . . . Data Miner (-6/Data Miner) Combat | -11 -10 -10 -10 -9 -8 -8 -8 -8 -7 -7 -6 -6 -6 -6 -6 -6 -5 -5 -5 -5 -5 -5 -4 -4 -------- Run | Scr Mat Min Exi Min Mat Gar Mat Gar Fac Gar Fac Was Fac Low Low Dat Pro Fac Ext Cet Arc Hub Fac Arm Damage Taken 26091 | . 537 301 . 124 2030 839 1229 440 731 1096 271 . 439 74 381 1399 1322 230 1861 548 542 2304 1610 7783 Core 2873 | . 75 73 . 57 289 91 64 24 68 35 19 . 75 . 96 232 116 50 106 47 47 140 62 1107 Absorbed by Shields 2150 | . . . . . 200 4 . 88 277 152 . . . . . . . . 77 . . . 732 620 Reduced by Siege Mode 676 | . . . . . . . . . . . . . . . . . . . . 12 . 45 . 619 Core Remaining (%) 52 | 100 . . . 18 . . . 14 . 85 . . . . . . 36 . . . . 61 . . Volleys Fired 1297 | 20 107 24 7 20 188 34 74 26 87 79 31 1 37 11 30 19 44 36 77 20 18 67 88 152 Largest 2 | 2 2 2 2 2 2 2 2 2 2 2 2 1 2 2 2 2 2 2 2 2 2 2 2 2 Hottest 188 | 40 100 40 40 43 50 50 50 50 50 53 50 30 90 115 90 72 188 188 180 70 70 90 120 149 Shots Fired 2382 | 40 199 48 14 40 368 64 146 50 167 141 59 1 67 17 42 26 81 47 140 40 36 119 156 274 Gun 2033 | 40 185 48 14 40 364 60 145 50 162 128 56 . 60 1 24 8 32 3 78 40 36 104 129 226 Cannon 235 | . . . . . . . . . . . . . 1 6 9 . 46 44 57 . . 15 19 38 Launcher 60 | . 3 . . . 4 4 1 . 3 9 . . . 10 8 18 . . . . . . . . Special 54 | . 11 . . . . . . . 2 4 3 1 6 . 1 . 3 . 5 . . . 8 10 Kinetic 2030 | 40 185 48 14 40 364 60 145 50 162 128 56 . 60 1 24 8 32 3 78 40 36 104 109 243 Thermal 216 | . 11 . . . . . . . . . . . 1 6 9 . 46 44 57 . . 15 8 19 Explosive 15 | . 3 . . . 4 4 1 . 3 . . . . . . . . . . . . . . . Electromagnetic 78 | . . . . . . . . . . 9 . . . 10 8 18 . . . . . . 31 2 Robot Hit Streak 30 | 9 18 5 . 6 20 15 20 11 12 14 14 14 23 2 8 10 12 13 25 6 14 17 24 30 Robot Miss Streak 7 | 3 6 3 . 2 6 2 5 2 4 7 4 . 1 1 3 2 4 1 2 4 2 3 4 4 Penetration Max 2 | . . . . . . . . . . . . . . . . . . . 1 . 1 2 1 2 Secondary Targets 41 | . 1 1 . 1 7 . 4 1 1 5 . . 1 . . . 2 . 3 2 . 3 3 6 Max Gunslinging Chain 1 | . 1 1 . 1 1 . 1 1 1 1 . . 1 . . . 1 . 1 1 . 1 1 1 Shots Hit Robots 1611 | 25 122 24 . 26 219 48 109 37 101 94 40 9 56 3 26 17 55 20 101 22 31 92 122 212 Core Hits 744 | 8 60 16 . 10 112 36 48 13 43 53 17 1 16 8 13 20 20 7 43 12 12 56 43 77 Critical Hits 85 | 1 2 . . . 1 . . . 1 1 1 . 1 . . 1 . . 8 5 5 23 11 24 Critical Kills 30 | . 2 . . . . . . . . 1 . . 1 . . . . . 2 3 1 9 2 9 Critical Parts Destroyed 53 | 1 . . . . 1 . . . 1 . 1 . . . . . . . 6 2 4 14 9 14 Melee Attacks 54 | . . . . . 7 . 11 17 5 3 . 9 . . . 2 . . . . . . . . Impact . | . . . . . . . . . . . . . . . . . . . . . . . . . Slashing . | . . . . . . . . . . . . . . . . . . . . . . . . . Piercing 43 | . . . . . 7 . 7 10 5 3 . 9 . . . 2 . . . . . . . . Sneak Attacks 14 | . . . . . . . 4 1 . . . 8 . . . 1 . . . . . . . . Combat Hostiles 12 | . . . . . . . 4 . . . . 8 . . . . . . . . . . . . Follow-up Attacks 2 | . . . . . . . . . . . . 2 . . . . . . . . . . . . Damage Inflicted 39665 | 247 1367 283 . 304 3759 1356 2253 514 2108 2067 705 319 873 356 671 762 1530 838 3105 579 891 4009 4279 6490 Guns 29841 | 247 1209 271 . 289 3220 821 1659 514 1947 1435 618 . 873 . 184 151 479 43 1751 579 891 3080 3692 5888 Cannons 4806 | . . . . . . . . . . . . . . . 162 . 1051 795 1354 . . 416 426 602 Explosions 4019 | . 149 . . . 370 535 267 . 161 632 87 . . 356 325 514 . . . . . 462 161 . Melee 907 | . . . . . 164 . 327 . . . . 319 . . . 97 . . . . . . . . Ramming 92 | . 9 12 . 15 5 . . . . . . . . . . . . . . . . 51 . . Kinetic 30035 | 247 1209 271 . 289 3220 821 1659 514 1947 1435 618 . 873 . 184 151 479 43 1751 579 891 3080 3412 6362 Thermal 4374 | . . . . . . . 254 . . 19 . . . . 162 80 1051 795 1354 . . 416 161 82 Explosive 1315 | . 149 . . . 370 535 13 . 161 . 87 . . . . . . . . . . . . . Electromagnetic 2942 | . . . . . . . . . . 613 . . . 356 325 434 . . . . . 462 706 46 Impact . | . . . . . . . . . . . . . . . . . . . . . . . . . Slashing . | . . . . . . . . . . . . . . . . . . . . . . . . . Piercing 907 | . . . . . 164 . 327 . . . . 319 . . . 97 . . . . . . . . Highest Corruption 33 | . . . . . 2 2 2 2 4 4 . . . . . . 2 . . . . 5 7 33 Average Corruption 3 | . . . . . 2 2 1 2 2 4 . . . . . . 1 . . . . 3 2 12 Corruption Purged 2 | . . . . . . . 2 . . . . . . . . . . . . . . . . . Effects 253 | . . . . . 28 5 8 10 28 37 . . . . . . 10 . . . . 19 12 96 Message Errors 55 | . . . . . 7 3 2 2 6 7 . . . . . . 3 . . . . 7 2 16 Matter Fused 37 | . . . . . . . . . 7 11 . . . . . . . . . . . 3 1 15 Heat Flow Errors 31 | . . . . . 6 1 1 4 2 6 . . . . . . 2 . . . . . 1 8 Energy Discharges 21 | . . . . . 5 . 1 . 5 3 . . . . . . 1 . . . . 3 . 3 Parts Rejected 2 | . . . . . . . . . 2 . . . . . . . . . . . . . . . Data Loss (minor) 28 | . . . . . 5 . 1 3 1 5 . . . . . . 4 . . . . 2 1 6 Data Loss (major) 2 | . . . . . . . . . . . . . . . . . . . . . . 1 1 . Misfires 3 | . . . . . . . . . . . . . . . . . . . . . . . . 3 Alerts 3 | . . . . . . . . . . . . . . . . . . . . . . . . 3 Misdirections 1 | . . . . . . . . . . . . . . . . . . . . . . . . 1 Targeting Errors 60 | . . . . . 3 1 3 1 4 4 . . . . . . . . . . . 3 4 37 Weapon Failures 10 | . . . . . 2 . . . 1 1 . . . . . . . . . . . . 2 4 Overload Shots . | . . . . . . . . . . . . . . . . . . . . . . . . . Overflow Damage 302 | . . . . . 14 . 100 . . . . . . . 60 . 19 24 39 . . . 38 8 Projectiles 176 | . . . . . . . . . . . . . . . 60 . 19 24 39 . . . 26 8 Explosions 126 | . . . . . 14 . 100 . . . . . . . . . . . . . . . 12 . Melee . | . . . . . . . . . . . . . . . . . . . . . . . . . Knockbacks 11 | . . . . 1 . . . . . . . . . . . . . . . . . . 4 6 Impact 1 | . . . . 1 . . . . . . . . . . . . . . . . . . . . Kinetic 10 | . . . . . . . . . . . . . . . . . . . . . . . 4 6 Secondary . | . . . . . . . . . . . . . . . . . . . . . . . . . Self-Inflicted Damage 378 | . . 2 . 1 2 13 201 . . . . . . . . . . . . . . 99 60 . Shots 7 | . . . . . . 2 3 . . . . . . . . . . . . . . 1 1 . Rammed 10 | . 1 2 . 2 1 . . . . . . . . . . . . . . . . 4 . . Targets Rammed 12 | . 3 2 . 2 1 . . . . . . . . . . . . . . . . 4 . . Kicked . | . . . . . . . . . . . . . . . . . . . . . . . . . Crushed 2 | . 2 . . . . . . . . . . . . . . . . . . . . . . . Highest Temperature 365 | . 72 17 4 14 216 187 152 328 262 365 152 10 14 213 208 95 312 22 261 198 39 121 266 302 Average Temperature 64 | . 12 3 1 2 36 51 37 118 68 107 49 10 4 71 56 37 117 10 48 76 19 60 66 94 Received Heat Transfer 5540 | . 258 72 . 54 699 438 369 153 140 448 111 . 156 30 180 180 96 18 682 36 72 531 252 565 Effects 14 | . . . . . . . . 1 . 5 . . . . . . . . . . . . 3 5 Shutdowns 1 | . . . . . . . . . . 1 . . . . . . . . . . . . . . Energy Bleed 2 | . . . . . . . . 1 . 1 . . . . . . . . . . . . . . Interference 11 | . . . . . . . . . . 3 . . . . . . . . . . . . 3 5 Siege Activations 8 | . . . . . . . . . . . . . . . . . . . . 1 . 3 . 4 Total Turns 228 | . . . . . . . . . . . . . . . . . . . . 17 . 68 . 143 Longest Duration 58 | . . . . . . . . . . . . . . . . . . . . 17 . 38 . 58 Robots Corrupted 11 | . . . . . . . . . . 4 . . . 2 . 3 . . . . . 1 1 . Combat Hostiles 8 | . . . . . . . . . . 1 . . . 2 . 3 . . . . . 1 1 . Parts Fried 20 | . . . . . . . . . . 2 . . . 4 . 3 . . 1 . . 3 7 . Impact Corruptions . | . . . . . . . . . . . . . . . . . . . . . . . . . Robots Melted . | . . . . . . . . . . . . . . . . . . . . . . . . . Combat Hostiles . | . . . . . . . . . . . . . . . . . . . . . . . . . Parts Melted 6 | . . . . . . . . . . . . . . . . . . 3 1 . . . 2 . Heat Transferred 3981 | . . . . . . . 200 . . 50 . . . . 250 100 1036 680 1165 . . 250 200 50 Parts Sabotaged . | . . . . . . . . . . . . . . . . . . . . . . . . . Parts Stolen . | . . . . . . . . . . . . . . . . . . . . . . . . . Parts Stripped . | . . . . . . . . . . . . . . . . . . . . . . . . . Power Chain Reactions 5 | . . . . . . . . . . 1 . . . . 1 1 . . . . . . 2 . Missiles Intercepted . | . . . . . . . . . . . . . . . . . . . . . . . . . Alert | -11 -10 -10 -10 -9 -8 -8 -8 -8 -7 -7 -6 -6 -6 -6 -6 -6 -5 -5 -5 -5 -5 -5 -4 -4 ------- Run | Scr Mat Min Exi Min Mat Gar Mat Gar Fac Gar Fac Was Fac Low Low Dat Pro Fac Ext Cet Arc Hub Fac Arm Peak Influence 1050 | 25 361 238 . 135 747 954 626 567 392 960 601 80 161 . . . . 123 504 540 297 1050 851 599 Initial 514 | . 16 69 . . . 356 464 275 297 181 504 80 . . . . . . 60 156 136 103 514 389 Average 326 | 10 213 109 . 31 336 717 452 401 279 681 366 49 38 . . . . 33 268 352 260 418 673 444 Maximum Alert Level 3 | . 1 1 . . 3 3 2 2 1 3 2 . . . . . . . 2 2 1 3 3 2 Low Security (%) 30 | 100 34 99 . 100 21 . . . 11 1 3 100 100 . . . . 100 23 12 15 7 . . Level 1 39 | . 65 . . . 38 17 35 74 88 21 41 . . . . . . . 70 70 84 53 . 35 Level 2 22 | . . . . . 38 24 64 25 . 18 54 . . . . . . . 6 16 . 31 53 64 Level 3 8 | . . . . . . 58 . . . 57 . . . . . . . . . . . 7 46 . Level 4 . | . . . . . . . . . . . . . . . . . . . . . . . . . Level 5 . | . . . . . . . . . . . . . . . . . . . . . . . . . High Security . | . . . . . . . . . . . . . . . . . . . . . . . . . Max Security . | . . . . . . . . . . . . . . . . . . . . . . . . . Squads Dispatched 54 | . 7 . . . 8 . 2 . 9 . 2 . 4 . . . . 3 3 . . 6 2 8 Investigation 10 | . 2 . . . 1 . . . 1 . . . 1 . . . . 1 3 . . 1 . . Extermination 12 | . . . . . . . . . 4 . 1 . 1 . . . . 1 . . . . 2 3 Reinforcement 19 | . 5 . . . 3 . 1 . 2 . 1 . 1 . . . . 1 . . . 3 . 2 Assault 3 | . . . . . . . 1 . . . . . . . . . . . . . . 2 . . Garrison 7 | . . . . . 4 . . . 2 . . . 1 . . . . . . . . . . . Intercept 3 | . . . . . . . . . . . . . . . . . . . . . . . . 3 Construction Impeded 2 | . . . . . . . 1 . . . . . . . . . . 1 . . . . . . Haulers Reinforced 3 | . . . . . . . . . 1 . . . 1 . . . . . . . . 1 . . Stealth | -11 -10 -10 -10 -9 -8 -8 -8 -8 -7 -7 -6 -6 -6 -6 -6 -6 -5 -5 -5 -5 -5 -5 -4 -4 --------- Run | Scr Mat Min Exi Min Mat Gar Mat Gar Fac Gar Fac Was Fac Low Low Dat Pro Fac Ext Cet Arc Hub Fac Arm Distress Signals 12 | . . . . . 2 . 2 . . . . . . . 1 . . . 1 1 . . 1 4 Communications Jammed 150 | . . . . . . . . . . . . . . . . . . . . . . 19 1 130 Distress Signals 150 | . . . . . . . . . . . . . . . . . . . . . . 19 1 130 Times Spotted 520 | . 41 17 . 9 74 21 40 10 23 31 7 1 9 3 5 4 15 5 48 18 8 44 28 59 Peak Tracking Total 10 | . 7 3 9 3 7 10 6 10 4 7 2 1 3 3 4 3 5 2 8 5 1 9 9 7 Tactical Retreats 41 | . . . . . 4 7 4 1 . 2 . . . . . . 1 . 5 . . 8 2 7 Traps | -11 -10 -10 -10 -9 -8 -8 -8 -8 -7 -7 -6 -6 -6 -6 -6 -6 -5 -5 -5 -5 -5 -5 -4 -4 ------- Run | Scr Mat Min Exi Min Mat Gar Mat Gar Fac Gar Fac Was Fac Low Low Dat Pro Fac Ext Cet Arc Hub Fac Arm Traps Triggered 24 | . 3 . . . . 2 2 2 1 4 1 . . . . . . . 6 . . 1 . 2 Indirectly . | . . . . . . . . . . . . . . . . . . . . . . . . . Trap Hack Attempts . | . . . . . . . . . . . . . . . . . . . . . . . . . Triggered . | . . . . . . . . . . . . . . . . . . . . . . . . . Disarmed . | . . . . . . . . . . . . . . . . . . . . . . . . . Reprogrammed . | . . . . . . . . . . . . . . . . . . . . . . . . . Reused . | . . . . . . . . . . . . . . . . . . . . . . . . . Traps Extracted . | . . . . . . . . . . . . . . . . . . . . . . . . . Installed . | . . . . . . . . . . . . . . . . . . . . . . . . . Triggered 1 | . . . . . . . . . . . . . . . 1 . . . . . . . . . Machines | -11 -10 -10 -10 -9 -8 -8 -8 -8 -7 -7 -6 -6 -6 -6 -6 -6 -5 -5 -5 -5 -5 -5 -4 -4 ---------- Run | Scr Mat Min Exi Min Mat Gar Mat Gar Fac Gar Fac Was Fac Low Low Dat Pro Fac Ext Cet Arc Hub Fac Arm Machines Disabled 53 | . 2 . 2 . 1 1 7 1 . 3 1 . . 1 . . . . 4 2 3 11 7 7 Max in Single Turn 6 | . 1 . 1 . 1 1 6 1 . 1 1 . . 1 . . . . 1 1 1 5 1 1 Garrison Access 3 | . . . . . . . . . 1 . . . 1 . . . . . . . . 1 . . Garrison Relay 5 | . . . . . . 1 . 1 . 3 . . . . . . . . . . . . . . Network Hub 1 | . . . . . . . . . . . . . . . . . . . . . . 1 . . Machines Sabotaged . | . . . . . . . . . . . . . . . . . . . . . . . . . Garrisons Compromised . | . . . . . . . . . . . . . . . . . . . . . . . . . Overloaded Fab Kills . | . . . . . . . . . . . . . . . . . . . . . . . . . Fab Network Shutdowns . | . . . . . . . . . . . . . . . . . . . . . . . . . Hacking | -11 -10 -10 -10 -9 -8 -8 -8 -8 -7 -7 -6 -6 -6 -6 -6 -6 -5 -5 -5 -5 -5 -5 -4 -4 --------- Run | Scr Mat Min Exi Min Mat Gar Mat Gar Fac Gar Fac Was Fac Low Low Dat Pro Fac Ext Cet Arc Hub Fac Arm Machines Accessed 83 | . 7 1 2 2 13 . 4 . 7 . 3 . 5 2 1 4 . 3 14 . . 7 2 6 Terminals 49 | . 4 1 . 1 7 . 3 . 2 . 3 . 2 . . . . 2 13 . . 6 1 4 Fabricators 7 | . . . . . . . . . 2 . . . 1 . . . . 1 . . . . 1 2 Repair Stations 3 | . 1 . . . 2 . . . . . . . . . . . . . . . . . . . Recycling Units 6 | . 2 . . . 1 . . . 1 . . . 1 . . . . . 1 . . . . . Scanalyzers 2 | . . . . . 2 . . . . . . . . . . . . . . . . . . . Garrison Access 6 | . . . . . 1 . 1 . 2 . . . 1 . . . . . . . . 1 . . Total Hacks 261 | . 23 3 5 3 40 . 12 . 11 . 8 . 14 2 1 26 . 7 37 . . 20 12 37 Successful 142 | . 10 1 5 2 31 . 6 . 6 . 2 . 4 2 1 26 . 3 16 . . 11 6 10 Failed 118 | . 13 2 . . 9 . 6 . 5 . 6 . 10 . . . . 4 21 . . 9 6 27 Catastrophic 31 | . 1 . . . 2 . 1 . 2 . 3 . 3 . . . . 2 2 . . 3 1 11 Database Lockouts 1 | . . . . 1 . . . . . . . . . . . . . . . . . . . . Manual 115 | . 16 3 1 2 18 . 11 . 4 . 8 . 7 . . . . . 7 . . 19 9 10 Terminals 149 | . 14 3 . 2 17 . 11 . 2 . 8 . 5 . . . . 4 34 . . 19 4 26 Fabricators 28 | . . . . . . . . . 5 . . . 1 . . . . 3 . . . . 8 11 Repair Stations 8 | . 4 . . . 4 . . . . . . . . . . . . . . . . . . . Recycling Units 14 | . 5 . . . 1 . . . 2 . . . 3 . . . . . 3 . . . . . Scanalyzers 16 | . . . . . 16 . . . . . . . . . . . . . . . . . . . Garrison Access 11 | . . . . . 2 . 1 . 2 . . . 5 . . . . . . . . 1 . . Terminal Hacks 66 | . 2 1 5 2 5 . 3 . . . 1 . 2 2 1 26 . . 9 . . 1 3 3 Record 16 | . . . 4 . . . . . . . . . . 1 . 11 . . . . . . . . Part Schematic 9 | . . 1 . . . . . . . . 1 . . . . 5 . . . . . . 2 . Robot Schematic 9 | . 1 . . 1 . . . . . . . . . . . 7 . . . . . . . . Prototype ID Bank 3 | . . . . . . . . . . . . . . . . 3 . . . . . . . . Open Door 12 | . . . . 1 . . . . . . . . . 1 1 . . . 8 . . . . 1 Level Access Points 1 | . . . . . . . . . . . . . . . . . . . . . . 1 . . Branch Access Points 2 | . . . . . 1 . . . . . . . 1 . . . . . . . . . . . Unreport Threat 7 | . . . . . 2 . 3 . . . . . . . . . . . . . . . . 2 Locate Traps 2 | . 1 . . . . . . . . . . . . . . . . . . . . . 1 . Hauler Manifests 2 | . . . . . 1 . . . . . . . . . . . . . 1 . . . . . Registered Components 1 | . . . . . . . . . . . . . 1 . . . . . . . . . . . Zone Layout 1 | . . . . . 1 . . . . . . . . . . . . . . . . . . . EX-Prototype ID Bank 1 | . . . 1 . . . . . . . . . . . . . . . . . . . . . Fabricator Hacks 11 | . . . . . . . . . 2 . . . . . . . . 3 . . . . 2 4 Load Schematic 5 | . . . . . . . . . 1 . . . . . . . . 1 . . . . 1 2 Build 6 | . . . . . . . . . 1 . . . . . . . . 2 . . . . 1 2 Repair Station Hacks 8 | . 4 . . . 4 . . . . . . . . . . . . . . . . . . . Scan Component 4 | . 2 . . . 2 . . . . . . . . . . . . . . . . . . . Repair 4 | . 2 . . . 2 . . . . . . . . . . . . . . . . . . . Recycling Unit Hacks 4 | . 1 . . . . . . . 1 . . . . . . . . . 2 . . . . . Retrieve Components 4 | . 1 . . . . . . . 1 . . . . . . . . . 2 . . . . . Scanalyzer 15 | . . . . . 15 . . . . . . . . . . . . . . . . . . . Insert Component 5 | . . . . . 5 . . . . . . . . . . . . . . . . . . . Analyze 10 | . . . . . 10 . . . . . . . . . . . . . . . . . . . Garrison Access Hacks 6 | . . . . . 1 . 1 . 2 . . . 1 . . . . . . . . 1 . . Unlock Access 3 | . . . . . 1 . 1 . 1 . . . . . . . . . . . . . . . Seal Access 3 | . . . . . . . . . 1 . . . 1 . . . . . . . . 1 . . Unauthorized Hacks 32 | . 3 . . . 6 . 2 . 1 . 1 . 1 . . . . . 5 . . 9 1 3 Terminals 24 | . 1 . . . 4 . 2 . . . 1 . . . . . . . 5 . . 9 1 1 Track 11 | . . . . . 2 . 1 . . . . . . . . . . . 2 . . 5 . 1 Botnet 10 | . 1 . . . 2 . 1 . . . 1 . . . . . . . 3 . . 1 1 . Detonate 2 | . . . . . . . . . . . . . . . . . . . . . . 2 . . Sabotage 1 | . . . . . . . . . . . . . . . . . . . . . . 1 . . Fabricators 2 | . . . . . . . . . . . . . . . . . . . . . . . . 2 Prioritize 1 | . . . . . . . . . . . . . . . . . . . . . . . . 1 Siphon 1 | . . . . . . . . . . . . . . . . . . . . . . . . 1 Repair Stations . | . . . . . . . . . . . . . . . . . . . . . . . . . Recycling Units 5 | . 2 . . . 1 . . . 1 . . . 1 . . . . . . . . . . . Tunnel 5 | . 2 . . . 1 . . . 1 . . . 1 . . . . . . . . . . . Scanalyzers . | . . . . . . . . . . . . . . . . . . . . . . . . . Garrison Access 1 | . . . . . 1 . . . . . . . . . . . . . . . . . . . Restock 1 | . . . . . 1 . . . . . . . . . . . . . . . . . . . Data Cores Recovered 1 | . . . . . . . . . . . . . 1 . . . . . . . . . . . Used 1 | . . . . . . . . . . . . . 1 . . . . . . . . . . . Hacking Detections 56 | . 6 1 . . 12 . 3 . 4 . 3 . 5 . . . . 3 9 . . 5 1 4 Full Trace Events 4 | . . . . . . . . . . . . . . . . . . 1 3 . . . . . Feedback Events . | . . . . . . . . . . . . . . . . . . . . . . . . . Feedback Blocked . | . . . . . . . . . . . . . . . . . . . . . . . . . Robot Schematics Acquired 9 | . 1 . . 1 . . . . . . . . . . . 7 . . . . . . . . Robots Built . | . . . . . . . . . . . . . . . . . . . . . . . . . Matter . | . . . . . . . . . . . . . . . . . . . . . . . . . Time . | . . . . . . . . . . . . . . . . . . . . . . . . . Total Robot Build Rating . | . . . . . . . . . . . . . . . . . . . . . . . . . Part Schematics Acquired 14 | . . 1 . . 5 . . . . . 1 . . . . 5 . . . . . . 2 . Parts Built 8 | . . . . . . . . . 2 . . . . . . . . 1 . . . . 1 4 Matter 1257 | . . . . . . . . . 190 . . . . . . . . 424 . . . . 234 409 Time 492 | . . . . . . . . . 95 . . . . . . . . 105 . . . . 117 175 Total Part Build Rating 50 | . . . . . . . . . 10 . . . . . . . . 5 . . . . 7 28 Parts Repaired 4 | . 2 . . . 2 . . . . . . . . . . . . . . . . . . . Time 170 | . 52 . . . 118 . . . . . . . . . . . . . . . . . . . Parts Recycled . | . . . . . . . . . . . . . . . . . . . . . . . . . Recycled Matter . | . . . . . . . . . . . . . . . . . . . . . . . . . Retrieved Matter . | . . . . . . . . . . . . . . . . . . . . . . . . . Retrieved Components 27 | . 10 . . . . . . . 2 . . . . . . . . . 15 . . . . . Parts Scanalyzed 5 | . . . . . 5 . . . . . . . . . . . . . . . . . . . Part Schematics Acquired 5 | . . . . . 5 . . . . . . . . . . . . . . . . . . . Parts Damaged . | . . . . . . . . . . . . . . . . . . . . . . . . . Bothacking | -11 -10 -10 -10 -9 -8 -8 -8 -8 -7 -7 -6 -6 -6 -6 -6 -6 -5 -5 -5 -5 -5 -5 -4 -4 ------------ Run | Scr Mat Min Exi Min Mat Gar Mat Gar Fac Gar Fac Was Fac Low Low Dat Pro Fac Ext Cet Arc Hub Fac Arm Used RIF Installer 3 | . . . . . . 1 . 1 . 1 . . . . . . . . . . . . . . Robot Detection 1 | . . . . . . . . . . 1 . . . . . . . . . . . . . . Watcher Feeds 1 | . . . . . . . . 1 . . . . . . . . . . . . . . . . Robots Hacked 29 | . . . . . . . 3 4 1 3 2 1 5 . . . . . 3 . . . 4 3 Non-combat 10 | . . . . . . . . . 1 . 1 . 4 . . . . . . . . . 4 . Combat 19 | . . . . . . . 3 4 . 3 1 1 1 . . . . . 3 . . . . 3 Robot Hacks Applied 32 | . . . . . . . 4 4 1 3 3 1 6 . . . . . 3 . . . 4 3 find_chute 1 | . . . . . . . . . 1 . . . . . . . . . . . . . . . drop_inventory 4 | . . . . . . . . . . . 1 . 2 . . . . . . . . . 1 . block_reporting 2 | . . . . . . . . . . . . . 1 . . . . . . . . . 1 . summon_haulers 2 | . . . . . . . . . . . . . 1 . . . . . . . . . 1 . ignore_targets 1 | . . . . . . . . . . . . 1 . . . . . . . . . . . . find_garrison 3 | . . . . . . . 1 . . . 1 . 1 . . . . . . . . . . . spike_heat 1 | . . . . . . . . . . 1 . . . . . . . . . . . . . . amplify_resonance 1 | . . . . . . . . . . . . . . . . . . . . . . . . 1 reboot_system 4 | . . . . . . . 3 1 . . . . . . . . . . . . . . . . overwrite_iff 5 | . . . . . . . . 1 . . . . . . . . . . 3 . . . . 1 streamctrl_high 2 | . . . . . . . . 1 . . . . . . . . . . . . . . . 1 formatsys_low 1 | . . . . . . . . . . . . . . . . . . . . . . . 1 . formatsys_high 5 | . . . . . . . . 1 . 2 1 . 1 . . . . . . . . . . . Relay Couplers Released 31 | . . . . . 4 4 . 3 . 15 . . 1 . . . . . . . . 4 . . Machine Destruction 22 | . . . . . . 4 . 3 . 15 . . . . . . . . . . . . . . Programmers 9 | . . . . . 4 . . . . . . . 1 . . . . . . . . 4 . . Attached 10 | . . . . . . . 1 2 . 1 2 . 1 . . . . . 1 . . . 1 1 Robots Rewired 17 | . . . . . . . . . . . . . . . 1 . 2 . 10 . . . . 4 Allies Hacked 2 | . . . . . . . . . . . . . . . . . . . 1 . . . 1 . Hacks Repelled . | . . . . . . . . . . . . . . . . . . . . . . . . . Allies | -11 -10 -10 -10 -9 -8 -8 -8 -8 -7 -7 -6 -6 -6 -6 -6 -6 -5 -5 -5 -5 -5 -5 -4 -4 -------- Run | Scr Mat Min Exi Min Mat Gar Mat Gar Fac Gar Fac Was Fac Low Low Dat Pro Fac Ext Cet Arc Hub Fac Arm Total Allies 48 | . . 6 . . . . . 3 . 2 1 . 1 . 1 . 2 . 25 . . . 1 6 Largest Group 9 | . . 5 5 2 2 . . 2 . 2 1 . 1 . 1 . 2 . 9 6 . . 1 4 Highest-Rated Group 247 | . . 108 108 32 32 . . 31 . 45 29 . 32 . 29 . 78 . 247 187 . . 20 240 Highest-Rated Ally 156 | . . 31 31 16 16 . . 16 . 29 29 . 32 . 29 . 49 . 156 37 . . 20 60 Total Orders 13 | . . . 1 . . . . 2 . . . . 1 . 1 . . . 2 . . . 2 4 STAY 7 | . . . 1 . . . . 1 . . . . 1 . . . . . 1 . . . 1 2 ROAM 1 | . . . . . . . . . . . . . . . 1 . . . . . . . . . FOLLOW 3 | . . . . . . . . 1 . . . . . . . . . . . . . . . 2 AID 1 | . . . . . . . . . . . . . . . . . . . . . . . 1 . RETURN 1 | . . . . . . . . . . . . . . . . . . . 1 . . . . . Ally Attacks 351 | . . 33 . 25 6 . . 7 . 24 2 . 5 . 11 . 12 . 165 53 . . . 8 Total Damage 6409 | . . 483 . 329 79 . . 129 . 407 25 . 249 . 207 . 316 . 3155 715 . . . 315 Kills 61 | . . 7 . 6 . . . 2 . 5 . . 1 . 1 . 3 . 22 12 . . . 2 Allies Corrupted 1 | . . . . . . . . . . . . . . . . . . . 1 . . . . . Allies Melted 1 | . . . . . . . . . . . . . . . . . . . 1 . . . . . Intel | -11 -10 -10 -10 -9 -8 -8 -8 -8 -7 -7 -6 -6 -6 -6 -6 -6 -5 -5 -5 -5 -5 -5 -4 -4 ------- Run | Scr Mat Min Exi Min Mat Gar Mat Gar Fac Gar Fac Was Fac Low Low Dat Pro Fac Ext Cet Arc Hub Fac Arm Robot Analysis Total 115 | . . . . . . . . . . . . . . . . 115 . . . . . . . . Derelict Logs Recovered 9 | . . 2 . 2 . . . . . . . . . 1 2 . 2 . . . . . . . Drone Launches 8 | . . . . . . . . . . . . . . . . . . . 4 4 . . . . Drone Recoveries 6 | . . . . . . . . . . . . . . . . . . . 4 2 . . . . Exploration | -11 -10 -10 -10 -9 -8 -8 -8 -8 -7 -7 -6 -6 -6 -6 -6 -6 -5 -5 -5 -5 -5 -5 -4 -4 ------------- Run | Scr Mat Min Exi Min Mat Gar Mat Gar Fac Gar Fac Was Fac Low Low Dat Pro Fac Ext Cet Arc Hub Fac Arm Turns Passed 28268 | 174 1625 1431 834 1363 2820 607 1211 792 2176 1816 1456 645 553 909 806 355 1917 756 2221 508 212 768 951 1362 Spaces Moved 14065 | 67 678 840 556 848 1449 260 430 289 1274 882 968 434 369 594 534 185 874 252 957 226 83 312 295 409 Core 3 | 3 . . . . . . . . . . . . . . . . . . . . . . . . Treads 4639 | 64 678 447 . 15 216 260 430 277 180 563 . . . . . . . . 659 226 83 173 36 332 Legs 242 | . . . . . . . . . . . . . . . . 25 140 . . . . . . 77 Wheels 9181 | . . 393 556 833 1233 . . 12 1094 319 968 434 369 594 534 160 734 252 298 . . 139 259 . Hover . | . . . . . . . . . . . . . . . . . . . . . . . . . Flight . | . . . . . . . . . . . . . . . . . . . . . . . . . Fastest Speed 50 | 50 160 120 120 150 130 192 200 190 140 140 130 115 115 125 125 115 140 190 180 180 180 135 145 150 Average Speed 159 | 156 170 157 145 151 141 197 208 207 148 178 139 139 118 125 125 146 176 209 186 188 180 162 159 167 Slowest Speed 300 | 160 180 200 150 220 192 225 260 220 220 200 140 140 125 125 125 240 210 220 210 260 180 200 200 300 Overloaded Moves . | . . . . . . . . . . . . . . . . . . . . . . . . . Propulsion Burnouts . | . . . . . . . . . . . . . . . . . . . . . . . . . Robots Hopped . | . . . . . . . . . . . . . . . . . . . . . . . . . Cave-ins Triggered . | . . . . . . . . . . . . . . . . . . . . . . . . . Exploration Rate (%) 57 | 5 89 99 87 100 97 40 36 45 22 69 17 96 12 69 77 78 92 6 89 52 70 36 10 32 Regions Visited 24 Branch Regions 12 Pre-discovered Areas 33 | . 2 . 1 . 1 . . . 1 . . . 1 . 1 25 1 . . . . . . . Known Exits Taken 10 | . . . . . 1 . 1 . 1 . . . 1 1 1 1 1 1 . . . 1 . . Unknown Exits Taken 9 | 1 1 1 1 1 . . . . . . . . . . . . . . 1 1 1 . 1 . Scrap Searched 10 | . . 1 . 2 . . . . . . . . . 2 2 . 3 . . . . . . . Spaces Dug 70 | . 9 . . . 10 . 2 . 14 . . . 1 1 2 . 3 11 6 . . 2 3 6 Terrain Destroyed 485 | . 29 . . . 39 8 46 . 22 1 10 . 1 4 9 5 18 24 22 4 12 180 26 25 Melee 5 | . . . . . 1 . 2 . 2 . . . . . . . . . . . . . . . Projectile 161 | . 11 . . . . . . . . . . . 1 4 4 . 18 24 22 4 12 22 14 25 AOE 319 | . 18 . . . 38 8 44 . 20 1 10 . . . 5 5 . . . . . 158 12 . Terrain Rammed . | . . . . . . . . . . . . . . . . . . . . . . . . . Walls Destroyed . | . . . . . . . . . . . . . . . . . . . . . . . . . Machines Disabled . | . . . . . . . . . . . . . . . . . . . . . . . . . Actions | -11 -10 -10 -10 -9 -8 -8 -8 -8 -7 -7 -6 -6 -6 -6 -6 -6 -5 -5 -5 -5 -5 -5 -4 -4 --------- Run | Scr Mat Min Exi Min Mat Gar Mat Gar Fac Gar Fac Was Fac Low Low Dat Pro Fac Ext Cet Arc Hub Fac Arm Total 17946 | 97 935 908 571 897 1914 317 640 433 1476 1060 1044 467 442 740 636 242 1170 434 1255 279 110 447 614 818 Wait 1464 | . 102 30 . 6 154 . 68 61 55 23 11 . 16 122 54 . 227 125 44 6 . 38 166 156 Move 14043 | 66 677 839 555 847 1448 259 430 288 1273 881 968 433 368 593 533 184 873 251 956 225 82 311 294 409 Hop . | . . . . . . . . . . . . . . . . . . . . . . . . . Pick Up 235 | 5 18 3 2 11 37 7 9 6 13 20 9 6 3 2 . 8 5 6 16 6 1 6 18 18 Fast Attach 113 | 6 9 1 . . 13 . 7 4 7 4 5 2 . . 4 5 1 2 13 3 2 2 9 14 Attach 104 | . 1 3 1 2 11 2 5 4 4 4 3 5 2 1 . 8 4 3 6 . 1 7 9 18 Detach 14 | . . 2 . . 1 . . 1 . . . 1 1 . 1 1 . . . . . . 3 3 Swap 240 | . 10 . 2 1 20 4 21 11 15 14 4 3 12 9 10 8 13 7 22 5 2 7 18 22 Drop 264 | . 8 4 4 8 34 7 15 11 17 24 13 10 3 2 4 8 3 4 27 14 4 5 9 26 Fire 1297 | 20 107 24 7 20 188 34 74 26 87 79 31 1 37 11 30 19 44 36 77 20 18 67 88 152 Melee 50 | . . . . . 7 . 11 17 5 3 . 6 . . . 1 . . . . . . . . Ram 3 | . . 1 . 1 1 . . . . . . . . . . . . . . . . . . . Kick . | . . . . . . . . . . . . . . . . . . . . . . . . . Crush 9 | . 3 1 . 1 . . . . . . . . . . . . . . . . . 4 . . Escape Stasis 26 | . . . . . . 4 . 4 . 8 . . . . . . . . 10 . . . . . Rewire 84 | . . . . . . . . . . . . . . . . . . . 84 . . . . . Trap . | . . . . . . . . . . . . . . . . . . . . . . . . . Miscellaneous . | . . . . . . . . . . . . . . . . . . . . . . . . . Route ------- -11/Scrapyard -10/Materials (discovered 4 exits: [*Mat x2] / *Min x2) -10/Mines (discovered 3 exits: [*Mat x2] / *Exi) -10/Exiles -9/Mines (discovered 2 exits: *Mat x2) -8/Materials (discovered 4 exits: *Fac x3 / Gar) -8/Garrison -8/Materials -8/Garrison -7/Factory -7/Garrison (discovered 3 exits: *Fac x3) -6/Factory (discovered 3 exits: *Fac / *Low x2) -6/Waste -6/Factory (discovered 2 exits: *Low x2) -6/Lower Caves -6/Lower Caves -6/Data Miner -5/Proximity Caves -5/Factory (discovered 2 exits: *Ext x2) -5/Extension (discovered 2 exits: *Fac / *Cet) -5/Cetus -5/Archives (discovered 3 exits: *Fac / *Hub x2) -5/Hub_04(d) (discovered 4 exits: *Fac x4) -4/Factory -4/Armory History --------- Turn | Location | Event 16 | -11/Scrapyard | Discovered new exit (range 16) 175 | -11/Scrapyard | Entered Materials 316 | -10/Materials | Build established: Mutant 553 | -10/Materials | Discovered new exit (range 14) 837 | -10/Materials | Repaired Lgt. Assault Rifle 864 | -10/Materials | Repaired Assault Rifle 918 | -10/Materials | Discovered new exit (range 14) 1303 | -10/Materials | Discovered new exit (range 16) 1750 | -10/Materials | Discovered new exit (range 10) 1800 | -10/Materials | Entered Mines 1801 | -10/Mines | Assembled infested the area 1803 | -10/Mines | Met a Derelict bent on vengeance 1813 | -10/Mines | Discovered new exit (range 14) 1831 | -10/Mines | Met 8R-AWN 1851 | -10/Mines | Learned Materials trap positions 2072 | -10/Mines | Assisted by bots powering up and referring to "LRC-V3" 2313 | -10/Mines | Discovered new exit (range 8) 2521 | -10/Mines | Escorted by a lone wolf Derelict 2627 | -10/Mines | Core integrity fell below 50% 2762 | -10/Mines | Learned Materials emergency access door positions 2876 | -10/Mines | Discovered new exit (range 5) 3231 | -10/Mines | Entered Exiles 3231 | -10/Exiles | Accompanied by 5 allies 3261 | -10/Exiles | Led the pair of lost Derelicts to a safe place 3264 | -10/Exiles | Welcomed by 8R-AWN 3283 | -10/Exiles | Met EX-HEX 3369 | -10/Exiles | Met EX-DEC 3414 | -10/Exiles | Learned location of Zion (-7) 3531 | -10/Exiles | Visited The Gauntlet 3630 | -10/Exiles | Build established: Hauler-Mutant 3723 | -10/Exiles | Met EX-BIN 3804 | -10/Exiles | Aligned with FarCom system 3806 | -10/Exiles | Given EX-Vault access code 3840 | -10/Exiles | Opened EX-Vault 3875 | -10/Exiles | Warned to stay clear of 0b10 Research branches 3968 | -10/Exiles | Discovered new exit (range 10) 4035 | -10/Exiles | Attacked by the Exiles 4065 | -10/Exiles | Entered Mines 4065 | -9/Mines | Accompanied by 2 allies 4334 | -9/Mines | Discovered new exit (range 6) 4391 | -9/Mines | Joined a pair of Derelicts in attacking an 0b10 outpost 4727 | -9/Mines | Discovered new exit (range 5) 4776 | -9/Mines | Learned Materials emergency access door positions 4831 | -9/Mines | Received a Rocket Launcher from a helpful Derelict 4889 | -9/Mines | Learned Materials emergency access door positions 4904 | -9/Mines | Found a damaged Exp. Sensor Array with a note attached 4909 | -9/Mines | Found Prototype Device 4981 | -9/Mines | Found the Drone Emporium 4988 | -9/Mines | Found Prototype Device 5174 | -9/Mines | Core integrity fell below 20% 5197 | -9/Mines | Central database locked down 5428 | -9/Mines | Entered Materials 5428 | -8/Materials | Accompanied by 2 allies 5428 | -8/Materials | Evolved 4 slots: Utility x4 5429 | -8/Materials | Loaded intel: 18 trap records 5433 | -8/Materials | Identified Exp. Sensor Array 5434 | -8/Materials | Identified Thief Drone Bay 5581 | -8/Materials | Garrison activated, responded to threat 6069 | -8/Materials | Discovered new exit (range 6) 6597 | -8/Materials | Discovered new exit (range 5) 7112 | -8/Materials | Repaired Imp. Propulsion Shielding 7249 | -8/Materials | Discovered new exit (range 3) 7398 | -8/Materials | Repaired Exp. Sensor Array? 7459 | -8/Materials | Core integrity fell below 50% 7907 | -8/Materials | Garrison activated, responded to threat 8178 | -8/Materials | Identified exit to Garrison 8248 | -8/Materials | Entered Garrison 8335 | -8/Garrison | Triggered checkpoint 8396 | -8/Garrison | Destroyed 8 combat bots 8607 | -8/Garrison | Discovered new exit (range 8) 8632 | -8/Garrison | Installed Relay Interface Framework 8726 | -8/Garrison | Triggered checkpoint 8743 | -8/Garrison | Garrison Relay disabled 8855 | -8/Garrison | Entered Materials 9255 | -8/Materials | First assault squad dispatched 10042 | -8/Materials | Core integrity fell below 20% 10066 | -8/Materials | Identified exit to Garrison 10066 | -8/Materials | Entered Garrison 10206 | -8/Garrison | Triggered checkpoint 10275 | -8/Garrison | Garrison Relay disabled 10638 | -8/Garrison | Triggered checkpoint 10792 | -8/Garrison | Discovered new exit (range 15) 10843 | -8/Garrison | Expanded RIF knowledge: Patrol Navigation 10858 | -8/Garrison | Entered Factory 10858 | -7/Factory | Evolved 2 slots: Propulsion x1, Utility x1 11466 | -7/Factory | Fabricated Lgt. Fission Core? 11952 | -7/Factory | Garrison activated, responded to threat 12327 | -7/Factory | Identified exit to Garrison 13034 | -7/Factory | Entered Garrison 13198 | -7/Garrison | Triggered checkpoint 13265 | -7/Garrison | Garrison Relay disabled 13478 | -7/Garrison | Triggered checkpoint 13605 | -7/Garrison | Triggered checkpoint 13607 | -7/Garrison | Triggered checkpoint 13615 | -7/Garrison | Triggered checkpoint 13766 | -7/Garrison | Triggered checkpoint 13806 | -7/Garrison | Garrison Relay disabled 13918 | -7/Garrison | Discovered new exit (range 12) 14082 | -7/Garrison | Discovered new exit (range 9) 14110 | -7/Garrison | Build established: Bothacker-Mutant 14112 | -7/Garrison | Expanded RIF knowledge: Robot Detection 14166 | -7/Garrison | Triggered checkpoint 14457 | -7/Garrison | Discovered new exit (range 12) 14850 | -7/Garrison | Entered Factory 14850 | -6/Factory | Evolved 2 slots: Propulsion x1, Utility x1 14897 | -6/Factory | Discovered new exit (range 5) 15600 | -6/Factory | Found Exp. Terrain Scan Processor 15851 | -6/Factory | Discovered new exit (range 15) 15860 | -6/Factory | Discovered new exit (range 16) 15886 | -6/Factory | Found Prototype Processor 15886 | -6/Factory | Identified Exp. Signal Interpreter 15888 | -6/Factory | Identified exit to Lower Caves 15898 | -6/Factory | Identified exit to Factory 16306 | -6/Factory | Sucked down chute 16306 | -6/Factory | Entered Waste 16306 | -6/Waste | The area was eerily silent 16450 | -6/Waste | A Compactor rumbled back to life 16451 | -6/Waste | Spotted C-40 Crusher 16490 | -6/Waste | Destroyed C-40 Crusher 16555 | -6/Waste | Discovered new exit (range 16) 16756 | -6/Waste | Found Unknown Protection 16950 | -6/Waste | Identified exit to Factory 16951 | -6/Waste | Entered Factory 17343 | -6/Factory | Garrison activated, responded to threat 17504 | -6/Factory | Entered Lower Caves 18379 | -6/Lower Caves | Discovered new exit (range 9) 18399 | -6/Lower Caves | Learned Factory interactive machine intel 18410 | -6/Lower Caves | Identified exit to Lower Caves 18413 | -6/Lower Caves | Entered another Lower Caves area 18451 | -6/Lower Caves | Encountered a Warlord checkpoint 18891 | -6/Lower Caves | Learned Factory garrison access intel 19150 | -6/Lower Caves | Discovered new exit (range 12) 19218 | -6/Lower Caves | Identified exit to Data Miner 19219 | -6/Lower Caves | Entered Data Miner 19219 | -6/Data Miner | Discovered new exit (range 6) 19243 | -6/Data Miner | Met Data Miner 19266 | -6/Data Miner | Learned location of Section 7 (-3) 19266 | -6/Data Miner | Acquired the access code to Warlord's prototype stash 19288 | -6/Data Miner | Received God Mode back door access code from Data Miner 19333 | -6/Data Miner | Destroyed Data Miner 19336 | -6/Data Miner | Interfaced with the Data Conduit 19375 | -6/Data Miner | Found Prototype Hackware 19378 | -6/Data Miner | Found Prototype Hackware 19380 | -6/Data Miner | Found Prototype Hackware 19392 | -6/Data Miner | Lost 4 parts (2n1u1w) 19447 | -6/Data Miner | Found Exp. Thermal Shield 19572 | -6/Data Miner | Identified exit to Proximity Caves 19574 | -6/Data Miner | Entered Proximity Caves 19961 | -5/Proximity Caves | Attracted the attention of an 0b10 outpost 19971 | -5/Proximity Caves | Core integrity fell below 50% 20321 | -5/Proximity Caves | Lost 3 parts (2n1u) 20679 | -5/Proximity Caves | Learned 8 Factory zone layouts 21096 | -5/Proximity Caves | Discovered exit to Factory (range 14) 21491 | -5/Proximity Caves | Entered Factory 21491 | -5/Factory | Evolved 2 slots: Power x1, Utility x1 21492 | -5/Factory | Identified exit to Extension 21493 | -5/Factory | Loaded intel: 274 machine locations 21494 | -5/Factory | Loaded intel: 48 interactive machine locations 21495 | -5/Factory | Loaded intel: 4 garrison access locations 21771 | -5/Factory | Fabricated Tactical Coordination Suite (x1) 21783 | -5/Factory | Build established: Scavenger-Mutant 22227 | -5/Factory | Discovered exit to Extension (range 11) 22247 | -5/Factory | Entered Extension 22248 | -5/Extension | Loaded intel: 36 machine locations 22263 | -5/Extension | Disrupted transfer network 22345 | -5/Extension | Rescued a captive Derelict 22345 | -5/Extension | Rescued a captive Derelict 22353 | -5/Extension | Rescued a captive Derelict 22354 | -5/Extension | Rescued a captive Derelict 22387 | -5/Extension | Rescued a captive Derelict 22393 | -5/Extension | Rescued a captive Derelict 22443 | -5/Extension | P-70 Sage assimilated allied 5B-H3M(b) 22548 | -5/Extension | Identified Quantum Router 22552 | -5/Extension | Rescued A7 22853 | -5/Extension | Rescued a captive Derelict 22933 | -5/Extension | Spotted B-75 Beast 22947 | -5/Extension | Allies destroyed B-75 Beast 22948 | -5/Extension | Spotted B-75 Beast 22983 | -5/Extension | Destroyed B-75 Beast 23040 | -5/Extension | Extracted ID and sensor layout for unrecognized location from A7's data core 23735 | -5/Extension | Rescued a captive Derelict 23736 | -5/Extension | Rescued a captive Derelict 23884 | -5/Extension | Rescued a captive Derelict 23884 | -5/Extension | Rescued a captive Derelict 24030 | -5/Extension | Discovered new exit (range 10) 24032 | -5/Extension | Discovered new exit (range 6) 24468 | -5/Extension | Entered Cetus 24468 | -5/Cetus | Accompanied by 6 allies 24469 | -5/Cetus | Loaded intel: 24 machine locations 24494 | -5/Cetus | Spotted Cetus Guard 24494 | -5/Cetus | Spotted Cetus Guard 24496 | -5/Cetus | Allies destroyed Cetus Guard 24497 | -5/Cetus | Spotted Cetus Guard 24501 | -5/Cetus | Allies destroyed Cetus Guard 24509 | -5/Cetus | Allies destroyed Cetus Guard 24509 | -5/Cetus | Spotted Cetus Guard 24528 | -5/Cetus | Allies destroyed Cetus Guard 24674 | -5/Cetus | Discovered new exit (range 15) 24976 | -5/Cetus | Entered Archives 24977 | -5/Archives | Loaded intel: 8 machine locations 25081 | -5/Archives | Discovered new exit (range 16) 25118 | -5/Archives | Discovered new exit (range 15) 25138 | -5/Archives | Discovered new exit (range 16) 25188 | -5/Archives | Entered Hub_04(d) 25189 | -5/Hub_04(d) | Loaded intel: 108 machine locations 25527 | -5/Hub_04(d) | Identified Ghost Barrier 25528 | -5/Hub_04(d) | Identified Deep Network Scanner 25529 | -5/Hub_04(d) | Identified exit to Factory 25788 | -5/Hub_04(d) | First assault squad dispatched 25833 | -5/Hub_04(d) | Build established: Hacker-Mutant 25898 | -5/Hub_04(d) | Network Hub disabled 25920 | -5/Hub_04(d) | Destroyed 8 combat bots 25956 | -5/Hub_04(d) | Entered Factory 25956 | -4/Factory | Evolved 2 slots: Utility x2 25956 | -4/Factory | Identified Damper Plating 25957 | -4/Factory | Loaded intel: 253 machine locations 26543 | -4/Factory | Fabricated Adv. Armor Integrity Analyzer (x1) 26656 | -4/Factory | Discovered new exit (range 14) 26666 | -4/Factory | Build established: Scavenger-Mutant 26835 | -4/Factory | Lost 5 parts (2p2n1u) 26907 | -4/Factory | Entered Armory 26908 | -4/Armory | Loaded intel: 96 machine locations 27072 | -4/Armory | Spotted B-86 Titan 27129 | -4/Armory | Lost 3 parts (2n1u) 27241 | -4/Armory | Lost 5 parts (1p2n2u) 27405 | -4/Armory | Fabricated Imp. Heavy Treads (x2) 27471 | -4/Armory | Fabricated Imp. Heavy Treads (x2) 27479 | -4/Armory | P-70 Sage assimilated allied Archangel 7a 27484 | -4/Armory | System corruption reached 10% 27822 | -4/Armory | Build established: Hauler-Mutant 27840 | -4/Armory | Core integrity fell below 50% 27898 | -4/Armory | Found Exp. Signal Interpreter 28197 | -4/Armory | Intercept squad dispatched 28207 | -4/Armory | Spotted Tracker 28207 | -4/Armory | Spotted Tracker 28234 | -4/Armory | Spotted Combat Programmer 28235 | -4/Armory | Spotted Combat Programmer 28242 | -4/Armory | Destroyed Tracker 28247 | -4/Armory | Destroyed Tracker 28250 | -4/Armory | Core integrity fell below 20% 28260 | -4/Armory | System corruption reached 30% 28269 | -4/Armory | Destroyed by Combat Programmer with EMDS Last Messages --------------- 28260_ System corrupted: Matter fused (-6). 28261_ Penetrated by EMDS Slug. 28261_ Critical hit. 28261_ Imp. KE Penetrator destroyed. 28262_ EMDS Slug penetrates Wall. 28262_ Penetrated by Slug. 28262_ Slug penetrates Wall. 28262_ Penetrated by Slug. 28262_ Imp. Transmission Jammer destroyed. 28263_ Penetrated by EMDS Slug. 28264_ System corrupted: Lgt. Antimatter Cannon targeting data glitched. 28264_ H-77 Assassin knocked back. 28264_ System corrupted: Lgt. Antimatter Cannon targeting data glitched. 28264_ H-77 Assassin knocked back. 28265_ Penetrated by EMDS Slug. 28266_ Penetrated by Slug. 28266_ Slug penetrates Wall. 28266_ Penetrated by EMDS Slug. 28267_ H-77 Assassin destroyed. 28267_ Penetrated by EMDS Slug. Map ----- +----------------------------------------------------+ | ?????????????????????????????????????????????????? | | ?????????????????????????????????????????????????? | | ?????????????????????????????????????????????????? | | ?????????????????????????????????????????????????? | | ?????????????????????????????????????????????????? | | ?????????????????????????????????????????????????? | | ?????????????????????????????????????????????????? | | ?????????????????????????????????????????????????? | | ?????????????????????????????????????????????????? | | ?????????????????????????????????????????????????? | | ?????"""?????????????????????????????????????????? | | ?????"""?????????????????????????????????????????? | | ?????"""?????????????????????????????????????????? | | ?????????????????????????????????????????????????? | | ?????????????????????????????????????????????????? | | ?????????????????????????????????????????????????? | | ?????????????????????????????????????????????##### | | ?????????????????????????????????????????????# | | ?????????????????????????????????????????????# | | ?"""?????????????????????????????????????????# | | ?"""?????????????????????????????????????????# | | ?"""?????????????##??????????????????????????# | | ?????????????????# #?????????????????????????# | | ??????????????????# #???#######??????????????# | | ???????????????????# #??#!*p[=########???????# | | ??????????T"????????# #?#@%p*[%%![ =*#???????# | | ??""???????"?????????# ##!%"!!#=!! [%; ????# ! | | ??F"???????"??????????# #p"T=!#?!! [=####????# ! | | ???"???????"???????????#*%""* #? !###?????# ! | | ??""???????????????????##![! + ? #"####### | | ????????????????????????#![! #] # ##### | | ?????????????????##########+######+#"# | | ????????????? | | ????????????? | | ????????????? *% | | ??????????????########+##############"! | | ????????????????????????????????????## * ##### | | ?????????????????????????????????????# ###???? | | ?????????????????"""?"""?"""?????????#T #?????? | | ?????????????????"""?"""?"""?????????## ##?????? | | ???????"""?"""???"""o"""?"""?????????# ] [#?????? | | ???????"""?"""???????????????????????# [ [ #?????? | | ???????"""?"""???"""?"""?"""?????????# ][[[#?????? | | ?????????????????"""?"""?"""?????????# [#?????? | | ?????????????????"""?"""?"""?????????#######?????? | | ?????????????????????????????????????????????????? | | ?????????????????????????????????????????????????? | | | | | | | +----------------------------------------------------+ Best States ------------- Heat Dissipation 86 Energy Generation 41 Energy Capacity 925 Matter Stores 300 Matter Capacity 300 Sight Range 16 Robot Scan Range 30 Terrain Scan Range 20 Terrain Scan Density 1010 ECM Strength 3 Jamming Range 12 Armor Coverage 1650 Resistance: KI 25 Resistance: TH 30 Resistance: EM 90 Core Shielding 20 Propulsion Shielding 66 Weapon Cycling 15 Phase Shifting 10 Evasion (%) 50 Targeting Accuracy 8 Melee Accuracy 6 Armor Integrity Analysis 66 Recoil Reduction 4 Particle Charging 20 Kinecelleration 40 Offensive Hacking 25 Defensive Hacking 25 Relay Coupler Types 40 Relay Coupler Value 2 Item Schematics ----------------- Hcp. Storage Unit | -10/Mines | Hacked Exp. Sensor Array | -8/Materials | Scanalyzed Lgt. Fission Core | -8/Materials | Scanalyzed Hacking Suite | -8/Materials | Scanalyzed Imp. Propulsion Shielding | -8/Materials | Scanalyzed Arm. Wheel | -8/Materials | Scanalyzed Lrn. Terrain Scanner | -6/Factory | Hacked Exp. ECM Suite | -6/Data Miner | Free Tactical Coordination Suite | -6/Data Miner | Free Exp. Targeting Computer | -6/Data Miner | Free Lgt. Regenerative Plating | -6/Data Miner | Free Combat Drone Bay | -6/Data Miner | Free Imp. Heavy Treads | -4/Factory | Hacked Adv. Armor Integrity Analyzer | -4/Factory | Hacked Robot Schematics ------------------ M-13 Machinist | -10/Materials | Hacked I-25 Savior | -9/Mines | Hacked S-27 Virus | -6/Data Miner | Free G-50 Soldier | -6/Data Miner | Free G-67 Veteran | -6/Data Miner | Free L-41 Fighter | -6/Data Miner | Free H-66 Slayer | -6/Data Miner | Free I-36 Angel | -6/Data Miner | Free I-47 Archangel | -6/Data Miner | Free Fabricated ------------ Lgt. Fission Core | x2 | -7/Factory Tactical Coordination Suite | x1 | -5/Factory Adv. Armor Integrity Analyzer | x1 | -4/Factory Imp. Heavy Treads | x2 | -4/Armory Imp. Heavy Treads | x2 | -4/Armory Alien Tech Used ----------------- None Achievements -------------- None Challenges ------------ None Game ------ Seed WeldingPoweredInverter Manual? 0 Play Time 03:12:23 Cumulative 622.8 hours Start 2021.06.30 @ 23:24:02 End 2021.07.01 @ 20:46:42 Sessions 9 Manual Loads 0 Difficulty Rogue Special Mode None Game No. 370 Rogue 370 Adventurer 0 Explorer 0 Win Type - Total 7 Types 4/0/1/1/1/0/0/0/0 Lore% 89 Gallery% 91 Achievement% 71 Wizard Run 0 Options --------- ASCII 0 Keyboard 0 Movement Mouse Keybinds 1 Fullscreen 2 Font 24/Smallcaps Map View 76x50 Tactical HUD 1 Map Filters NONE Filters NONE Steam 1 RUN: 45415ff2-731d-4fc5-a1b3-e769fbe31127